[Event "Kupreichik Memorial Open 2018"]
[Site "Minsk"]
[Date "2018.06.21"]
[Round "2"]
[White "Drobyshevsky, Vasily"]
[Black "Rybakova, Polina"]
[Result "0-1"]
[ECO "A22"]
[WhiteElo "1551"]
[BlackElo "1826"]
[Annotator "NA"]
[PlyCount "108"]
[EventDate "2018.06.21"]
[EventCountry "BLR"]
[SourceTitle "playchess.com"]
[Source "ChessBase"]
[SourceQuality "1"]
[TimeControl "900+10"]

1. c4 {[%emt 0:00:00]} e5 {[%emt 0:00:27]} 2. Nc3 {[%emt 0:00:00]} Nf6 {[%emt 0:00:02]} 3. e3 {[%emt 0:00:00]} d5 {[%emt 0:00:33]} 4. d4 {[%emt 0:00:00]} exd4 {[%emt 0:00:57]} 5. exd4 {[%emt 0:00:00]} Qe7+ {[%emt 0:00:15]} 6. Qe2 {[%emt 0:00:25]} Qxe2+ {[%emt 0:01:01]} 7. Bxe2 {[%emt 0:00:03]} Bb4 {[%emt 0:00:08]} 8. cxd5 {[%emt 0:00:46]} Nxd5 {[%emt 0:00:43]} 9. Bd2 {[%emt 0:00:03]} Nf6 {[%emt 0:01:05]} 10. Bf3 {[%emt 0:00:26]} c6 {[%emt 0:01:01]} 11. Nge2 {[%emt 0:00:10]} O-O {[%emt 0:00:14]} 12. O-O {[%emt 0:00:03]} Bf5 {[%emt 0:00:32]} 13. Rfe1 {[%emt 0:00:32]} Nbd7 {[%emt 0:00:22]} 14. a3 {[%emt 0:01:00]} Ba5 {[%emt 0:00:36]} 15. b4 {[%emt 0:01:32]} Bb6 {[%emt 0:01:13]} 16. d5 {[%emt 0:00:15]} cxd5 {[%emt 0:02:33]} 17. Nxd5 {[%emt 0:00:11]} Be4 {[%emt 0:03:16]} 18. Nxb6 {[%emt 0:00:28]} Nxb6 {[%emt 0:00:06]} 19. Bg5 {[%emt 0:00:39]} Bxf3 {[%emt 0:00:38]} 20. Bxf6 {[%emt 0:00:04]} Bxe2 {[%emt 0:01:07]} 21. Be7 {[%emt 0:01:00]} Bh5 {[%emt 0:01:06]} 22. Bxf8 {[%emt 0:00:04]} Kxf8 23. Rac1 {[%emt 0:00:09]} Rd8 {[%emt 0:00:52]} 24. Rc7 {[%emt 0:00:04]} Rd7 {[%emt 0:00:10]} 25. Rec1 {[%emt 0:00:56]} Ke7 {[%emt 0:00:06]} 26. Rxd7+ {[%emt 0:01:00]} Kxd7 {[%emt 0:00:03]} 27. f3 {[%emt 0:00:10]} Bg6 {[%emt 0:00:14]} 28. Rc5 {[%emt 0:00:50]} a6 {[%emt 0:00:12]} 29. Kf2 {[%emt 0:01:00]} Nc8 {[%emt 0:00:17]} 30. f4 {[%emt 0:01:22]} Nd6 {[%emt 0:00:02]} 31. Kg1 {[%emt 0:00:22]} b6 {[%emt 0:00:12]} 32. Rd5 {[%emt 0:00:37]} Be4 {[%emt 0:00:09]} 33. Rd4 {[%emt 0:00:08]} f5 {[%emt 0:00:15]} 34. g3 {[%emt 0:00:08]} Ke6 {[%emt 0:00:10]} 35. Kf2 {[%emt 0:00:12]} Nb5 {[%emt 0:00:06]} 36. Rd8 {[%emt 0:00:18]} Nxa3 {[%emt 0:00:15]} 37. Rb8 {[%emt 0:00:32]} Nc4 {[%emt 0:00:10]} 38. Rc8 {[%emt 0:00:38]} Kd5 {[%emt 0:00:09]} 39. Rg8 {[%emt 0:00:12]} Nd6 {[%emt 0:00:10]} 40. Rxg7 {[%emt 0:00:23]} Kc4 {[%emt 0:00:06]} 41. Rxh7 {[%emt 0:00:06]} Kxb4 42. h4 {[%emt 0:00:03]} a5 {[%emt 0:00:21]} 43. h5 {[%emt 0:00:02]} Ne8 {[%emt 0:00:12]} 44. h6 {[%emt 0:00:14]} Nf6 {[%emt 0:00:02]} 45. Rf7 {[%emt 0:00:13]} Ng4+ {[%emt 0:00:04]} 46. Ke2 {[%emt 0:00:09]} Nxh6 {[%emt 0:00:12]} 47. Ra7 {[%emt 0:00:03]} b5 {[%emt 0:00:09]} 48. Ra6 {[%emt 0:00:03]} Ng4 {[%emt 0:00:04]} 49. Kd2 {[%emt 0:00:04]} a4 {[%emt 0:00:04]} 50. Kc1 {[%emt 0:00:02]} Kb3 {[%emt 0:00:11]} 51. Kd2 {[%emt 0:00:09]} b4 {[%emt 0:00:10]} 52. Ra7 {[%emt 0:00:03]} a3 {[%emt 0:00:10]} 53. Ke2 {[%emt 0:00:11]} Kb2 {[%emt 0:00:07]} 54. Kd2 {[%emt 0:00:07]} a2 {[%emt 0:00:04]} 0-1

[Event "Kupreichik Memorial Open 2018"]
[Site "Minsk"]
[Date "2018.06.21"]
[Round "2"]
[White "Boiko, Aleksei"]
[Black "Girshgorn, Maria"]
[Result "0-1"]
[ECO "A48"]
[WhiteElo "1526"]
[BlackElo "1805"]
[Annotator "NA"]
[PlyCount "60"]
[EventDate "2018.06.21"]
[EventCountry "BLR"]
[SourceTitle "playchess.com"]
[Source "ChessBase"]
[SourceQuality "1"]
[TimeControl "900+10"]

1. d4 {[%emt 0:00:00]} Nf6 {[%emt 0:02:11]} 2. Nf3 {[%emt 0:00:00]} g6 {[%emt 0:00:01]} 3. Bf4 {[%emt 0:00:00]} Bg7 {[%emt 0:00:01]} 4. e3 {[%emt 0:00:00]} d6 {[%emt 0:00:00]} 5. Be2 {[%emt 0:00:00]} O-O {[%emt 0:00:02]} 6. h3 {[%emt 0:00:00]} Nbd7 {[%emt 0:00:06]} 7. O-O {[%emt 0:00:01]} c5 {[%emt 0:00:16]} 8. c4 {[%emt 0:00:02]} cxd4 {[%emt 0:00:40]} 9. exd4 {[%emt 0:00:01]} Ne4 {[%emt 0:00:17]} 10. Nc3 {[%emt 0:00:04]} Ndf6 {[%emt 0:00:03]} 11. Re1 {[%emt 0:00:03]} Nxc3 {[%emt 0:00:11]} 12. bxc3 {[%emt 0:00:02]} Ne4 {[%emt 0:00:01]} 13. Qc2 {[%emt 0:00:05]} Nf6 {[%emt 0:01:07]} 14. Bd3 {[%emt 0:00:32]} b6 {[%emt 0:00:46]} 15. Nd2 {[%emt 0:00:11]} Bb7 {[%emt 0:00:07]} 16. Ne4 {[%emt 0:00:02]} Rc8 {[%emt 0:02:07]} 17. Qa4 {[%emt 0:01:51]} Bc6 {[%emt 0:00:27]} 18. Qa3 {[%emt 0:00:25]} Bxe4 {[%emt 0:00:45]} 19. Bxe4 {[%emt 0:00:03]} Nxe4 {[%emt 0:00:22]} 20. Rxe4 {[%emt 0:00:01]} Rxc4 {[%emt 0:00:02]} 21. Qxa7 {[%emt 0:00:10]} e5 {[%emt 0:00:04]} 22. Bh2 {[%emt 0:04:02]} exd4 {[%emt 0:02:32]} 23. cxd4 {[%emt 0:00:03]} Rxd4 {[%emt 0:00:11]} 24. Rae1 {[%emt 0:01:34]} Rxe4 {[%emt 0:01:44]} 25. Rxe4 {[%emt 0:00:02]} d5 {[%emt 0:00:01]} 26. Rb4 {[%emt 0:01:52]} d4 {[%emt 0:00:28]} 27. Qxb6 {[%emt 0:00:03]} d3 {[%emt 0:00:06]} 28. Qxd8 {[%emt 0:00:24]} Rxd8 {[%emt 0:00:01]} 29. Rb1 {[%emt 0:00:03]} d2 {[%emt 0:00:01]} 30. Rd1 {[%emt 0:00:03]} Re8 {[%emt 0:00:09]} 0-1

[Event "Kupreichik Memorial Open 2018"]
[Site "Minsk"]
[Date "2018.06.21"]
[Round "3"]
[White "Nikitenko, Mihail"]
[Black "Ilyuchyk, Yana"]
[Result "1-0"]
[ECO "B31"]
[WhiteElo "2401"]
[BlackElo "1971"]
[Annotator "NA"]
[PlyCount "73"]
[EventDate "2018.06.21"]
[EventCountry "BLR"]
[SourceTitle "playchess.com"]
[Source "ChessBase"]
[SourceQuality "1"]
[TimeControl "900+10"]

1. e4 {[%emt 0:00:00]} c5 {[%emt 0:00:03]} 2. Nf3 {[%emt 0:00:00]} Nc6 {[%emt 0:00:02]} 3. Bb5 {[%emt 0:00:00]} g6 {[%emt 0:00:04]} 4. O-O {[%emt 0:00:01]} Bg7 {[%emt 0:00:06]} 5. c3 {[%emt 0:00:07]} Nf6 {[%emt 0:00:10]} 6. Re1 {[%emt 0:00:03]} O-O {[%emt 0:00:23]} 7. d4 {[%emt 0:00:36]} cxd4 {[%emt 0:00:06]} 8. cxd4 {[%emt 0:00:02]} d5 {[%emt 0:00:04]} 9. e5 {[%emt 0:00:45]} Ne4 {[%emt 0:00:42]} 10. h3 {[%emt 0:00:02]} f6 {[%emt 0:01:32]} 11. exf6 {[%emt 0:00:05]} exf6 {[%emt 0:00:13]} 12. Nc3 {[%emt 0:00:13]} Nxc3 {[%emt 0:01:33]} 13. bxc3 {[%emt 0:00:01]} Bf5 {[%emt 0:00:24]} 14. Nh4 {[%emt 0:01:59]} Bd7 {[%emt 0:01:07]} 15. Ba3 {[%emt 0:05:54]} Re8 {[%emt 0:00:50]} 16. Qb3 {[%emt 0:01:32]} Be6 {[%emt 0:01:00]} 17. f4 {[%emt 0:02:45]} Bf7 {[%emt 0:01:45]} 18. f5 {[%emt 0:00:21]} Bh6 {[%emt 0:02:28]} 19. Bd3 {[%emt 0:00:38]} g5 {[%emt 0:00:50]} 20. Nf3 {[%emt 0:00:01]} Qc7 {[%emt 0:00:19]} 21. Rad1 {[%emt 0:00:55]} b6 {[%emt 0:00:46]} 22. Qc2 {[%emt 0:00:05]} Na5 {[%emt 0:00:24]} 23. Bb5 {[%emt 0:01:07]} Rxe1+ {[%emt 0:00:36]} 24. Rxe1 {[%emt 0:00:01]} Bf8 {[%emt 0:00:06]} 25. Bxf8 {[%emt 0:00:58]} Kxf8 {[%emt 0:00:07]} 26. Qd2 {[%emt 0:00:04]} h6 {[%emt 0:00:21]} 27. h4 {[%emt 0:00:24]} Qg3 {[%emt 0:01:11]} 28. hxg5 {[%emt 0:00:20]} hxg5 {[%emt 0:00:02]} 29. Qe3 {[%emt 0:00:08]} Kg7 {[%emt 0:00:24]} 30. Qe7 {[%emt 0:00:03]} g4 {[%emt 0:00:44]} 31. Ng5 {[%emt 0:00:28]} fxg5 32. Qxg5+ {[%emt 0:00:02]} Kf8 {[%emt 0:00:17]} 33. Re3 {[%emt 0:00:01]} Qc7 {[%emt 0:00:28]} 34. f6 {[%emt 0:00:06]} Be6 {[%emt 0:00:49]} 35. Qh6+ {[%emt 0:00:27]} Kg8 {[%emt 0:00:06]} 36. Rxe6 {[%emt 0:00:01]} Qh7 {[%emt 0:00:02]} 37. f7+ {[%emt 0:00:05]} 1-0

[Event "Kupreichik Memorial Open 2018"]
[Site "Minsk"]
[Date "2018.06.21"]
[Round "3"]
[White "Meshkov, Yuri A"]
[Black "Uzlavataya, Anhelina"]
[Result "1-0"]
[ECO "A80"]
[WhiteElo "2375"]
[BlackElo "1925"]
[Annotator "NA"]
[PlyCount "71"]
[EventDate "2018.06.21"]
[EventCountry "BLR"]
[SourceTitle "playchess.com"]
[Source "ChessBase"]
[SourceQuality "1"]
[TimeControl "900+10"]

1. d4 {[%emt 0:00:00]} f5 {[%emt 0:00:02]} 2. Nc3 {[%emt 0:00:00]} Nf6 {[%emt 0:00:06]} 3. Bf4 {[%emt 0:00:03]} g6 {[%emt 0:00:07]} 4. h4 {[%emt 0:00:19]} Bg7 {[%emt 0:00:32]} 5. h5 {[%emt 0:00:07]} Nxh5 {[%emt 0:00:04]} 6. Rxh5 {[%emt 0:00:01]} gxh5 {[%emt 0:00:02]} 7. e3 {[%emt 0:00:09]} O-O {[%emt 0:00:21]} 8. Qxh5 {[%emt 0:00:01]} Qe8 {[%emt 0:00:03]} 9. Qxe8 {[%emt 0:00:10]} Rxe8 {[%emt 0:00:06]} 10. Bxc7 {[%emt 0:00:01]} b6 {[%emt 0:02:40]} 11. Bc4+ {[%emt 0:00:03]} e6 {[%emt 0:00:07]} 12. O-O-O {[%emt 0:00:39]} Ba6 {[%emt 0:00:12]} 13. Bb3 {[%emt 0:00:20]} Nc6 {[%emt 0:00:59]} 14. Nf3 {[%emt 0:00:08]} Rac8 {[%emt 0:00:42]} 15. Bf4 {[%emt 0:00:09]} d5 {[%emt 0:01:05]} 16. Ba4 {[%emt 0:00:11]} Rf8 {[%emt 0:01:18]} 17. Nb5 {[%emt 0:01:14]} Bxb5 {[%emt 0:03:35]} 18. Bxb5 {[%emt 0:00:02]} Rf6 {[%emt 0:00:13]} 19. Rh1 {[%emt 0:00:49]} Nb4 {[%emt 0:00:45]} 20. c3 {[%emt 0:00:04]} a6 {[%emt 0:01:02]} 21. Be2 {[%emt 0:00:03]} b5 {[%emt 0:00:07]} 22. Kd2 {[%emt 0:00:47]} Nc6 {[%emt 0:00:02]} 23. a4 {[%emt 0:00:01]} Na7 {[%emt 0:01:07]} 24. axb5 {[%emt 0:00:03]} axb5 {[%emt 0:00:44]} 25. Ra1 {[%emt 0:00:03]} Rf7 {[%emt 0:00:12]} 26. Ng5 {[%emt 0:00:03]} Re7 {[%emt 0:00:05]} 27. Bd6 {[%emt 0:00:12]} Rd7 {[%emt 0:00:07]} 28. Bc5 {[%emt 0:00:01]} Nc6 {[%emt 0:01:11]} 29. Nxe6 {[%emt 0:00:28]} Rb7 {[%emt 0:00:19]} 30. b4 {[%emt 0:00:36]} Kf7 {[%emt 0:00:24]} 31. Nf4 {[%emt 0:00:01]} Rd8 {[%emt 0:00:11]} 32. Bh5+ {[%emt 0:00:20]} Kf6 {[%emt 0:00:12]} 33. Ra6 {[%emt 0:00:02]} Rc8 {[%emt 0:00:18]} 34. Bf3 {[%emt 0:00:17]} Kg5 {[%emt 0:00:06]} 35. Bxd5 {[%emt 0:00:18]} Ne7 {[%emt 0:00:11]} 36. Bxb7 {[%emt 0:00:08]} 1-0

[Event "Kupreichik Memorial Open 2018"]
[Site "Minsk"]
[Date "2018.06.21"]
[Round "3"]
[White "Zhukova, Natalia"]
[Black "Tyurin, Artem"]
[Result "1-0"]
[ECO "A16"]
[WhiteElo "2356"]
[BlackElo "1855"]
[Annotator "NA"]
[PlyCount "63"]
[EventDate "2018.06.21"]
[EventCountry "BLR"]
[SourceTitle "playchess.com"]
[Source "ChessBase"]
[SourceQuality "1"]
[TimeControl "900+10"]

1. c4 {[%emt 0:00:00]} Nf6 {[%emt 0:00:01]} 2. Nc3 {[%emt 0:00:00]} d5 {[%emt 0:00:05]} 3. cxd5 {[%emt 0:00:43]} Nxd5 {[%emt 0:00:02]} 4. g3 {[%emt 0:00:30]} g6 {[%emt 0:00:06]} 5. Bg2 {[%emt 0:00:02]} Nb6 {[%emt 0:00:01]} 6. h4 {[%emt 0:00:39]} h5 {[%emt 0:00:22]} 7. d3 {[%emt 0:00:24]} Bg7 {[%emt 0:00:08]} 8. Bg5 {[%emt 0:00:02]} Nc6 {[%emt 0:00:36]} 9. Rc1 {[%emt 0:00:10]} Nd4 {[%emt 0:00:32]} 10. Nf3 {[%emt 0:01:11]} Ne6 {[%emt 0:00:07]} 11. Be3 {[%emt 0:00:25]} c6 {[%emt 0:00:06]} 12. Qd2 {[%emt 0:00:37]} O-O {[%emt 0:00:10]} 13. Bh6 {[%emt 0:00:38]} Nd5 {[%emt 0:00:59]} 14. Ne4 {[%emt 0:01:19]} Qb6 {[%emt 0:00:23]} 15. Bxg7 {[%emt 0:00:31]} Nxg7 {[%emt 0:00:21]} 16. Ne5 {[%emt 0:01:59]} Bf5 {[%emt 0:01:50]} 17. Nc5 {[%emt 0:02:05]} Qc7 {[%emt 0:01:16]} 18. d4 {[%emt 0:00:03]} Nf6 {[%emt 0:00:35]} 19. O-O {[%emt 0:00:37]} Rad8 {[%emt 0:00:36]} 20. Qb4 {[%emt 0:00:28]} Rb8 {[%emt 0:01:33]} 21. e4 {[%emt 0:01:22]} Bc8 {[%emt 0:00:32]} 22. Qc3 {[%emt 0:00:06]} Qd6 {[%emt 0:00:35]} 23. Rfd1 {[%emt 0:01:06]} Ne6 {[%emt 0:00:22]} 24. Nb3 {[%emt 0:01:21]} Bd7 {[%emt 0:01:30]} 25. Qe3 {[%emt 0:00:11]} Ng4 {[%emt 0:00:34]} 26. Nxg4 {[%emt 0:00:04]} hxg4 {[%emt 0:00:01]} 27. d5 cxd5 {[%emt 0:01:02]} 28. Rxd5 {[%emt 0:00:09]} Qa6 {[%emt 0:00:25]} 29. Rxd7 {[%emt 0:00:07]} Qxa2 {[%emt 0:00:01]} 30. Rd2 {[%emt 0:00:40]} Rfd8 {[%emt 0:00:09]} 31. Ra1 {[%emt 0:00:18]} Qxb3 {[%emt 0:01:00]} 32. Rxd8+ {[%emt 0:00:06]} 1-0

[Event "Kupreichik Memorial Open 2018"]
[Site "Minsk"]
[Date "2018.06.21"]
[Round "3"]
[White "Kalugin, Sergey G"]
[Black "Masjuk, Vladimir"]
[Result "0-1"]
[ECO "C71"]
[WhiteElo "2334"]
[BlackElo "1829"]
[Annotator "NA"]
[PlyCount "58"]
[EventDate "2018.06.21"]
[EventCountry "BLR"]
[SourceTitle "playchess.com"]
[Source "ChessBase"]
[SourceQuality "1"]
[TimeControl "900+10"]

1. e4 {[%emt 0:00:00]} e5 {[%emt 0:00:04]} 2. Nf3 {[%emt 0:00:00]} Nc6 {[%emt 0:00:02]} 3. Bb5 {[%emt 0:00:33]} a6 {[%emt 0:00:03]} 4. Ba4 {[%emt 0:00:01]} d6 {[%emt 0:00:30]} 5. c4 {[%emt 0:00:37]} Be7 {[%emt 0:00:17]} 6. Nc3 {[%emt 0:00:05]} Nf6 {[%emt 0:00:08]} 7. h3 {[%emt 0:00:21]} O-O {[%emt 0:00:04]} 8. O-O {[%emt 0:00:41]} Be6 {[%emt 0:00:24]} 9. d3 {[%emt 0:00:11]} Nd7 {[%emt 0:00:25]} 10. Nd5 {[%emt 0:00:12]} f5 {[%emt 0:01:40]} 11. Nxe7+ {[%emt 0:00:57]} Qxe7 {[%emt 0:00:17]} 12. Ng5 {[%emt 0:02:03]} f4 {[%emt 0:00:56]} 13. Nxe6 {[%emt 0:00:20]} Qxe6 {[%emt 0:00:02]} 14. Bxc6 {[%emt 0:01:37]} bxc6 {[%emt 0:00:03]} 15. Qg4 {[%emt 0:00:19]} Qe7 {[%emt 0:00:41]} 16. b4 {[%emt 0:01:01]} Rf6 {[%emt 0:00:37]} 17. a4 {[%emt 0:01:15]} Rg6 {[%emt 0:00:31]} 18. Qf3 {[%emt 0:00:05]} Nf8 {[%emt 0:01:14]} 19. d4 {[%emt 0:00:30]} Ne6 {[%emt 0:00:20]} 20. dxe5 {[%emt 0:00:02]} dxe5 {[%emt 0:00:13]} 21. Bb2 {[%emt 0:00:08]} Ng5 {[%emt 0:00:12]} 22. Qg4 {[%emt 0:02:48]} Nxe4 {[%emt 0:01:12]} 23. Qf5 {[%emt 0:00:56]} Nd2 {[%emt 0:01:21]} 24. Rfd1 {[%emt 0:00:17]} Rf8 {[%emt 0:01:46]} 25. Qd3 {[%emt 0:01:57]} Qg5 {[%emt 0:01:26]} 26. g3 {[%emt 0:00:14]} Rd8 {[%emt 0:00:10]} 27. Rxd2 {[%emt 0:01:31]} Rxd3 {[%emt 0:00:03]} 28. Rxd3 {[%emt 0:00:01]} fxg3 {[%emt 0:00:04]} 29. fxg3 {[%emt 0:00:05]} Rd6 {[%emt 0:00:31]} 0-1

[Event "Kupreichik Memorial Open 2018"]
[Site "Minsk"]
[Date "2018.06.21"]
[Round "3"]
[White "Nomin-Erdene, Davaademberel"]
[Black "Rybakova, Polina"]
[Result "1-0"]
[ECO "B01"]
[WhiteElo "2312"]
[BlackElo "1826"]
[Annotator "NA"]
[PlyCount "55"]
[EventDate "2018.06.21"]
[EventCountry "BLR"]
[SourceTitle "playchess.com"]
[Source "ChessBase"]
[SourceQuality "1"]
[TimeControl "900+10"]

1. e4 {[%emt 0:00:00]} d5 {[%emt 0:00:02]} 2. exd5 {[%emt 0:00:00]} Qxd5 {[%emt 0:00:01]} 3. Nc3 {[%emt 0:00:00]} Qa5 {[%emt 0:00:01]} 4. d4 {[%emt 0:00:00]} Nf6 {[%emt 0:00:09]} 5. Nf3 {[%emt 0:00:00]} Bg4 {[%emt 0:00:04]} 6. Bc4 {[%emt 0:02:09]} e6 {[%emt 0:00:36]} 7. h3 {[%emt 0:00:15]} Bxf3 {[%emt 0:01:06]} 8. Qxf3 {[%emt 0:00:02]} c6 {[%emt 0:00:01]} 9. Bd2 {[%emt 0:00:10]} Qd8 {[%emt 0:00:38]} 10. Ne2 {[%emt 0:00:49]} Nbd7 {[%emt 0:00:55]} 11. O-O-O {[%emt 0:00:42]} Nb6 {[%emt 0:00:24]} 12. Bb3 {[%emt 0:00:36]} a5 {[%emt 0:00:11]} 13. a3 {[%emt 0:00:45]} Be7 {[%emt 0:02:48]} 14. g4 {[%emt 0:00:34]} Nbd5 {[%emt 0:00:53]} 15. c4 {[%emt 0:01:19]} Nc7 {[%emt 0:00:40]} 16. g5 {[%emt 0:01:05]} Nd7 {[%emt 0:00:04]} 17. h4 {[%emt 0:00:02]} Ra6 {[%emt 0:03:26]} 18. Nf4 {[%emt 0:01:44]} b5 {[%emt 0:00:21]} 19. c5 {[%emt 0:02:20]} Nd5 {[%emt 0:02:15]} 20. Bc2 {[%emt 0:01:09]} Nf8 {[%emt 0:01:24]} 21. Nh5 {[%emt 0:00:58]} Rg8 {[%emt 0:00:35]} 22. Ng3 {[%emt 0:01:06]} a4 {[%emt 0:00:33]} 23. Qe2 {[%emt 0:00:15]} Ra8 {[%emt 0:00:43]} 24. f4 {[%emt 0:01:48]} Qb8 {[%emt 0:00:15]} 25. Qf3 {[%emt 0:00:38]} Ra6 {[%emt 0:00:47]} 26. f5 {[%emt 0:00:09]} g6 {[%emt 0:00:23]} 27. fxg6 {[%emt 0:00:39]} hxg6 28. Rhf1 {time} 1-0

[Event "Kupreichik Memorial Open 2018"]
[Site "Minsk"]
[Date "2018.06.21"]
[Round "3"]
[White "Terletsky, Oleg"]
[Black "Badelka, Olga"]
[Result "0-1"]
[ECO "B30"]
[WhiteElo "2268"]
[BlackElo "2153"]
[Annotator "NA"]
[PlyCount "112"]
[EventDate "2018.06.21"]
[EventCountry "BLR"]
[SourceTitle "playchess.com"]
[Source "ChessBase"]
[SourceQuality "1"]
[TimeControl "900+10"]

1. e4 {[%emt 0:00:00]} c5 {[%emt 0:00:01]} 2. Nf3 {[%emt 0:00:00]} Nc6 {[%emt 0:00:00]} 3. Nc3 {[%emt 0:00:00]} e5 {[%emt 0:00:06]} 4. Bc4 {[%emt 0:00:00]} Be7 {[%emt 0:00:02]} 5. d3 {[%emt 0:00:00]} d6 {[%emt 0:00:06]} 6. Nd2 {[%emt 0:00:11]} Nf6 {[%emt 0:00:03]} 7. Nf1 {[%emt 0:00:03]} Bg4 {[%emt 0:00:04]} 8. f3 {[%emt 0:00:07]} Be6 {[%emt 0:00:04]} 9. Ne3 {[%emt 0:01:35]} O-O {[%emt 0:00:02]} 10. O-O {[%emt 0:00:06]} Nh5 {[%emt 0:00:19]} 11. Nf5 {[%emt 0:00:32]} Bxf5 {[%emt 0:01:30]} 12. exf5 {[%emt 0:00:03]} Bg5 {[%emt 0:00:15]} 13. Nd5 {[%emt 0:00:36]} Bxc1 {[%emt 0:00:11]} 14. Rxc1 {[%emt 0:00:03]} Nf4 {[%emt 0:02:14]} 15. Qd2 {[%emt 0:01:09]} Qg5 {[%emt 0:00:31]} 16. Nxf4 {[%emt 0:01:20]} exf4 {[%emt 0:00:03]} 17. g4 {[%emt 0:00:11]} Nd4 {[%emt 0:00:53]} 18. Qg2 {[%emt 0:03:06]} Rae8 {[%emt 0:00:38]} 19. Rce1 {[%emt 0:00:02]} Re3 {[%emt 0:00:19]} 20. Rxe3 {[%emt 0:00:29]} fxe3 {[%emt 0:00:00]} 21. c3 {[%emt 0:02:07]} e2 {[%emt 0:00:10]} 22. Re1 {[%emt 0:01:36]} Qh4 {[%emt 0:03:11]} 23. Rxe2 {[%emt 0:00:02]} Nxe2+ {[%emt 0:00:01]} 24. Qxe2 {[%emt 0:00:02]} Qd8 {[%emt 0:00:10]} 25. Qe4 {[%emt 0:00:11]} Qd7 {[%emt 0:01:10]} 26. Bd5 {[%emt 0:02:07]} Re8 {[%emt 0:00:08]} 27. Qf4 {[%emt 0:00:02]} Re1+ {[%emt 0:01:18]} 28. Kg2 {[%emt 0:00:25]} Qe7 {[%emt 0:01:37]} 29. d4 {[%emt 0:00:46]} Re2+ {[%emt 0:02:14]} 30. Kh3 {[%emt 0:00:16]} cxd4 {[%emt 0:00:50]} 31. cxd4 {[%emt 0:00:05]} Rxb2 {[%emt 0:00:27]} 32. g5 {[%emt 0:00:11]} Qe2 {[%emt 0:00:45]} 33. Qg3 {[%emt 0:00:03]} Qf1+ {[%emt 0:00:13]} 34. Kh4 {[%emt 0:00:02]} Qg2 {[%emt 0:00:55]} 35. Qxd6 {[%emt 0:01:10]} Qxh2+ {[%emt 0:00:02]} 36. Qxh2 {[%emt 0:00:02]} Rxh2+ {[%emt 0:00:01]} 37. Kg3 {[%emt 0:00:03]} Rd2 {[%emt 0:00:13]} 38. g6 {[%emt 0:00:35]} hxg6 {[%emt 0:00:01]} 39. fxg6 {[%emt 0:00:02]} Rxd4 {[%emt 0:00:02]} 40. gxf7+ {[%emt 0:00:40]} Kf8 {[%emt 0:00:01]} 41. Bxb7 {[%emt 0:00:02]} Kxf7 {[%emt 0:00:06]} 42. Be4 {[%emt 0:00:03]} Kf6 {[%emt 0:00:10]} 43. Bc2 {[%emt 0:00:07]} a5 {[%emt 0:00:13]} 44. Bb3 {[%emt 0:00:18]} a4 {[%emt 0:00:15]} 45. Bg8 {[%emt 0:00:03]} g5 {[%emt 0:00:45]} 46. Kf2 {[%emt 0:00:10]} Ke5 {[%emt 0:00:10]} 47. Ke3 {[%emt 0:00:01]} Rh4 {[%emt 0:00:09]} 48. Bf7 {[%emt 0:00:17]} Kd6 {[%emt 0:00:09]} 49. Be8 {[%emt 0:00:33]} Kc5 {[%emt 0:00:02]} 50. Bf7 {[%emt 0:00:17]} Kb4 {[%emt 0:00:08]} 51. Be6 {[%emt 0:00:27]} Ka3 {[%emt 0:00:07]} 52. Bd5 {[%emt 0:00:21]} Rb4 {[%emt 0:00:20]} 53. Kf2 {[%emt 0:00:45]} Rb2+ {[%emt 0:00:20]} 54. Kg3 {[%emt 0:00:03]} Rxa2 {[%emt 0:00:06]} 55. Kg4 {[%emt 0:00:23]} Rg2+ {[%emt 0:00:04]} 56. Kf5 {[%emt 0:00:01]} Rg1 {[%emt 0:00:06]} 0-1

[Event "Kupreichik Memorial Open 2018"]
[Site "Minsk"]
[Date "2018.06.21"]
[Round "3"]
[White "Ten, Alexander"]
[Black "Naumovich, Yaroslav"]
[Result "1/2-1/2"]
[ECO "B15"]
[WhiteElo "2265"]
[BlackElo "1959"]
[Annotator "NA"]
[PlyCount "104"]
[EventDate "2018.06.21"]
[EventCountry "BLR"]
[SourceTitle "playchess.com"]
[Source "ChessBase"]
[SourceQuality "1"]
[TimeControl "900+10"]

1. e4 {[%emt 0:00:00]} c6 {[%emt 0:00:01]} 2. d4 {[%emt 0:00:00]} d5 {[%emt 0:00:01]} 3. Nc3 {[%emt 0:00:00]} dxe4 {[%emt 0:00:01]} 4. Nxe4 {[%emt 0:00:00]} Nf6 {[%emt 0:00:01]} 5. Nxf6+ {[%emt 0:00:10]} exf6 {[%emt 0:00:01]} 6. Nf3 {[%emt 0:00:02]} Bd6 {[%emt 0:00:01]} 7. Bd3 {[%emt 0:00:17]} O-O {[%emt 0:00:02]} 8. O-O {[%emt 0:00:02]} Bg4 {[%emt 0:00:02]} 9. h3 {[%emt 0:00:25]} Bh5 {[%emt 0:00:01]} 10. Be4 {[%emt 0:00:43]} Nd7 {[%emt 0:00:05]} 11. Qd3 {[%emt 0:00:06]} Bg6 {[%emt 0:00:05]} 12. Bxg6 {[%emt 0:00:10]} hxg6 {[%emt 0:00:01]} 13. Bd2 {[%emt 0:01:13]} Qc7 {[%emt 0:00:02]} 14. b4 {[%emt 0:00:39]} Rfe8 {[%emt 0:00:07]} 15. c4 {[%emt 0:00:18]} Bf4 {[%emt 0:00:04]} 16. Rfd1 {[%emt 0:02:06]} Nb6 {[%emt 0:00:15]} 17. Rac1 {[%emt 0:02:07]} Rad8 {[%emt 0:00:08]} 18. Rc2 {[%emt 0:00:43]} Bxd2 {[%emt 0:00:12]} 19. Rcxd2 {[%emt 0:00:05]} Qe7 {[%emt 0:00:39]} 20. Qb3 {[%emt 0:00:28]} Qe4 {[%emt 0:00:47]} 21. a4 {[%emt 0:00:10]} Nc8 {[%emt 0:01:36]} 22. d5 {[%emt 0:00:35]} cxd5 {[%emt 0:00:03]} 23. Rxd5 {[%emt 0:01:12]} Rxd5 {[%emt 0:00:08]} 24. Rxd5 {[%emt 0:00:07]} Nb6 {[%emt 0:00:24]} 25. Rd4 {[%emt 0:00:04]} Qc6 {[%emt 0:00:20]} 26. a5 {[%emt 0:00:26]} Nd7 {[%emt 0:00:47]} 27. Qd3 {[%emt 0:00:27]} Ne5 {[%emt 0:00:07]} 28. Nxe5 {[%emt 0:00:03]} fxe5 {[%emt 0:00:11]} 29. Rd6 {[%emt 0:00:09]} Qa4 {[%emt 0:00:02]} 30. Qd5 {[%emt 0:00:29]} Qxb4 {[%emt 0:00:43]} 31. Rd7 {[%emt 0:00:01]} Qe1+ {[%emt 0:00:02]} 32. Kh2 {[%emt 0:00:06]} Qxf2 {[%emt 0:00:04]} 33. Rxb7 {[%emt 0:00:08]} e4 {[%emt 0:00:34]} 34. Qd7 {[%emt 0:00:30]} Rf8 {[%emt 0:02:27]} 35. Qe7 {[%emt 0:00:49]} Qf4+ {[%emt 0:00:45]} 36. Kh1 {[%emt 0:00:03]} e3 {[%emt 0:00:04]} 37. Rb3 {[%emt 0:00:08]} Qf1+ {[%emt 0:01:09]} 38. Kh2 {[%emt 0:00:00]} e2 {[%emt 0:01:31]} 39. Re3 {[%emt 0:00:02]} Qf4+ {[%emt 0:00:15]} 40. Kh1 {[%emt 0:00:03]} Rb8 {[%emt 0:00:42]} 41. Rxe2 {[%emt 0:00:17]} Rb1+ {[%emt 0:00:01]} 42. Re1 {[%emt 0:00:02]} Rxe1+ {[%emt 0:00:01]} 43. Qxe1 {[%emt 0:00:01]} Qxc4 {[%emt 0:00:04]} 44. Qe7 {[%emt 0:00:49]} a6 {[%emt 0:00:53]} 45. Qe5 {[%emt 0:00:41]} f6 {[%emt 0:00:20]} 46. Qd6 {[%emt 0:00:28]} g5 {[%emt 0:01:11]} 47. Qd8+ {[%emt 0:00:16]} Kf7 {[%emt 0:00:34]} 48. Qd7+ {[%emt 0:00:03]} Kg6 {[%emt 0:00:01]} 49. Qe8+ {[%emt 0:00:30]} Kf5 {[%emt 0:01:22]} 50. Qd7+ {[%emt 0:00:04]} Kg6 {[%emt 0:00:18]} 51. Qe8+ {[%emt 0:00:01]} Kf5 {[%emt 0:01:26]} 52. Qd7+ {[%emt 0:00:01]} Ke5 1/2-1/2